[Event "Titled Tuesday Blitz June 28 Early 2022"]
[White "Ardila, Oscar Humberto"]
[Black "Ozdemir, Serhan Berat"]
[WhiteFideId "4404742"]
[BlackFideId "6374611"]
[WhiteElo "1956"]
[BlackElo "1920"]
[Result "1-0"]
[Round "02"]
[TimeControl "180+1"]
[Date "2022.06.28"]
[WhiteClock "0:00:49"]
[BlackClock "0:00:01"]

1. d4 {[%clk 0:02:59]}  Nf6 {[%clk 0:02:59]} 2. c4 {[%clk 0:02:59]}  g6 {[%clk 0:02:59]} 3. Nc3 {[%clk 0:02:59]}  Bg7 {[%clk 0:03:00]} 4. Nf3 {[%clk 0:02:59]}  O-O {[%clk 0:02:59]} 5. Bf4 {[%clk 0:02:59]}  c5 {[%clk 0:02:59]} 6. d5 {[%clk 0:02:59]}  e6 {[%clk 0:02:59]} 7. e3 {[%clk 0:02:58]}  exd5 {[%clk 0:02:58]} 8. cxd5 {[%clk 0:02:58]}  d6 {[%clk 0:02:55]} 9. h3 {[%clk 0:02:56]}  a6 {[%clk 0:02:44]} 10. a4 {[%clk 0:02:56]}  Re8 {[%clk 0:02:43]} 11. Be2 {[%clk 0:02:55]}  Ne4 {[%clk 0:02:38]} 12. Nxe4 {[%clk 0:02:47]}  Rxe4 {[%clk 0:02:39]} 13. Qc2 {[%clk 0:02:47]}  Rb4 {[%clk 0:02:38]} 14. Ra2 {[%clk 0:02:43]}  Bf5 {[%clk 0:02:31]} 15. Qd2 {[%clk 0:02:17]}  Bb1 {[%clk 0:02:22]} 16. Ra1 {[%clk 0:02:09]}  Rxb2 {[%clk 0:02:19]} 17. Qxb2 {[%clk 0:02:07]}  Bxb2 {[%clk 0:02:18]} 18. Rxb1 {[%clk 0:02:08]}  Bc3+ {[%clk 0:02:11]} 19. Kf1 {[%clk 0:02:08]}  b5 {[%clk 0:02:03]} 20. axb5 {[%clk 0:02:03]}  axb5 {[%clk 0:02:04]} 21. Bxb5 {[%clk 0:02:03]}  Na6 {[%clk 0:01:25]} 22. Rb3 {[%clk 0:01:47]}  Bf6 {[%clk 0:01:19]} 23. g4 {[%clk 0:01:46]}  Nb4 {[%clk 0:01:18]} 24. Kg2 {[%clk 0:01:46]}  Nxd5 {[%clk 0:00:57]} 25. Bc6 {[%clk 0:01:39]}  Nxf4+ {[%clk 0:00:56]} 26. exf4 {[%clk 0:01:40]}  Rb8 {[%clk 0:00:46]} 27. Rd3 {[%clk 0:01:40]}  Rb4 {[%clk 0:00:42]} 28. Kg3 {[%clk 0:01:33]}  c4 {[%clk 0:00:20]} 29. Rdd1 {[%clk 0:01:17]}  Qc7 {[%clk 0:00:19]} 30. Bd5 {[%clk 0:01:16]}  c3 {[%clk 0:00:18]} 31. Rhe1 {[%clk 0:01:15]}  c2 {[%clk 0:00:17]} 32. Re8+ {[%clk 0:01:11]}  Kg7 {[%clk 0:00:17]} 33. Rc1 {[%clk 0:01:10]}  Bb2 {[%clk 0:00:17]} 34. Rxc2 {[%clk 0:01:04]}  Qxc2 {[%clk 0:00:16]} 35. Re7 {[%clk 0:01:05]}  Rxf4 {[%clk 0:00:03]} 36. Kxf4 {[%clk 0:01:03]}  Be5+ {[%clk 0:00:04]} 37. Ke3 {[%clk 0:01:01]}  Qc3+ {[%clk 0:00:03]} 38. Ke2 {[%clk 0:00:58]}  Qc2+ {[%clk 0:00:03]} 39. Nd2 {[%clk 0:00:56]}  Qc3 {[%clk 0:00:02]} 40. Rxf7+ {[%clk 0:00:55]}  Kh6 {[%clk 0:00:02]} 41. h4 {[%clk 0:00:51]}  Bf4 {[%clk 0:00:02]} 42. g5+ {[%clk 0:00:50]}  Kh5 {[%clk 0:00:02]} 43. Rxh7+ {[%clk 0:00:48]}  Kg4 {[%clk 0:00:01]} 44. Be6# {[%clk 0:00:49]} 1-0


[Site "https://www.chess.com"]

[Event "Titled Tuesday Blitz June 28 Early 2022"]
[White "Baches Garcia, Guillermo"]
[Black "Rosenberg, Evan S"]
[WhiteFideId "2209764"]
[BlackFideId "2019299"]
[WhiteElo "2461"]
[BlackElo "2144"]
[Result "1-0"]
[Round "02"]
[TimeControl "180+1"]
[Date "2022.06.28"]
[WhiteClock "0:00:54"]
[BlackClock "0:00:01"]

1. e4 {[%clk 0:02:58]}  e6 {[%clk 0:03:00]} 2. d4 {[%clk 0:02:58]}  d5 {[%clk 0:03:01]} 3. exd5 {[%clk 0:02:59]}  exd5 {[%clk 0:03:01]} 4. Nf3 {[%clk 0:02:59]}  Nf6 {[%clk 0:03:01]} 5. Bd3 {[%clk 0:02:59]}  c5 {[%clk 0:03:00]} 6. O-O {[%clk 0:03:00]}  c4 {[%clk 0:03:00]} 7. Re1+ {[%clk 0:03:00]}  Be7 {[%clk 0:03:00]} 8. Bf1 {[%clk 0:03:01]}  O-O {[%clk 0:03:00]} 9. Nc3 {[%clk 0:03:01]}  Bg4 {[%clk 0:02:55]} 10. h3 {[%clk 0:03:00]}  Bh5 {[%clk 0:02:55]} 11. g4 {[%clk 0:02:59]}  Bg6 {[%clk 0:02:55]} 12. Ne5 {[%clk 0:02:59]}  Nc6 {[%clk 0:02:44]} 13. Bg2 {[%clk 0:02:58]}  Re8 {[%clk 0:02:39]} 14. Nxg6 {[%clk 0:02:45]}  hxg6 {[%clk 0:02:39]} 15. g5 {[%clk 0:02:45]}  Ne4 {[%clk 0:02:32]} 16. Nxe4 {[%clk 0:02:40]}  dxe4 {[%clk 0:02:33]} 17. Rxe4 {[%clk 0:02:40]}  Qa5 {[%clk 0:02:08]} 18. d5 {[%clk 0:02:28]}  Rad8 {[%clk 0:01:49]} 19. Rxc4 {[%clk 0:02:24]}  Ne5 {[%clk 0:01:49]} 20. Rc3 {[%clk 0:02:02]}  Bb4 {[%clk 0:01:43]} 21. Re3 {[%clk 0:01:50]}  Nc4 {[%clk 0:01:39]} 22. Rxe8+ {[%clk 0:01:45]}  Rxe8 {[%clk 0:01:40]} 23. c3 {[%clk 0:01:43]}  Bd6 {[%clk 0:00:48]} 24. a4 {[%clk 0:01:34]}  Qc7 {[%clk 0:00:22]} 25. b3 {[%clk 0:01:25]}  Na5 {[%clk 0:00:15]} 26. c4 {[%clk 0:01:22]}  Be5 {[%clk 0:00:15]} 27. Ra2 {[%clk 0:01:20]}  Bc3 {[%clk 0:00:15]} 28. Be3 {[%clk 0:01:13]}  b6 {[%clk 0:00:13]} 29. Qd3 {[%clk 0:01:10]}  Bb4 {[%clk 0:00:11]} 30. Re2 {[%clk 0:01:09]}  Nb7 {[%clk 0:00:10]} 31. Bf4 {[%clk 0:01:07]}  Qd8 {[%clk 0:00:09]} 32. Rxe8+ {[%clk 0:01:06]}  Qxe8 {[%clk 0:00:09]} 33. Qe3 {[%clk 0:01:05]}  Qxe3 {[%clk 0:00:08]} 34. fxe3 {[%clk 0:01:05]}  Kf8 {[%clk 0:00:07]} 35. Be4 {[%clk 0:01:03]}  Ke7 {[%clk 0:00:07]} 36. Bc2 {[%clk 0:01:03]}  Nc5 {[%clk 0:00:05]} 37. Kg2 {[%clk 0:01:03]}  Nd7 {[%clk 0:00:04]} 38. Kf3 {[%clk 0:01:02]}  a5 {[%clk 0:00:03]} 39. h4 {[%clk 0:01:02]}  Nc5 {[%clk 0:00:03]} 40. e4 {[%clk 0:01:02]}  Nd7 {[%clk 0:00:02]} 41. e5 {[%clk 0:01:02]}  Nc5 {[%clk 0:00:02]} 42. Bd1 {[%clk 0:00:56]}  Bc3 {[%clk 0:00:01]} 43. Bc2 {[%clk 0:00:54]} 1-0


[Site "https://www.chess.com"]

[Event "Titled Tuesday Blitz June 28 Early 2022"]
[White "Barp, Alberto"]
[Black "Melikhov, Evgeny V."]
[WhiteFideId "872555"]
[BlackFideId "4122046"]
[WhiteElo "2229"]
[BlackElo "1904"]
[Result "1-0"]
[Round "02"]
[TimeControl "180+1"]
[Date "2022.06.28"]
[WhiteClock "0:01:34"]
[BlackClock "0:00:35"]

1. d4 {[%clk 0:02:57]}  Nf6 {[%clk 0:02:59]} 2. c4 {[%clk 0:02:57]}  e6 {[%clk 0:02:59]} 3. g3 {[%clk 0:02:55]}  d5 {[%clk 0:02:59]} 4. Bg2 {[%clk 0:02:55]}  dxc4 {[%clk 0:02:59]} 5. Qa4+ {[%clk 0:02:54]}  Bd7 {[%clk 0:02:59]} 6. Qxc4 {[%clk 0:02:54]}  Bc6 {[%clk 0:02:59]} 7. Nf3 {[%clk 0:02:55]}  Qd5 {[%clk 0:02:56]} 8. Qxd5 {[%clk 0:02:51]}  Bxd5 {[%clk 0:02:56]} 9. O-O {[%clk 0:02:50]}  Be7 {[%clk 0:02:50]} 10. Nc3 {[%clk 0:02:50]}  O-O {[%clk 0:02:47]} 11. Bf4 {[%clk 0:02:51]}  Bxf3 {[%clk 0:02:38]} 12. Bxf3 {[%clk 0:02:50]}  c6 {[%clk 0:02:38]} 13. e4 {[%clk 0:02:49]}  Nbd7 {[%clk 0:02:34]} 14. Rfd1 {[%clk 0:02:49]}  Nb6 {[%clk 0:02:32]} 15. Rac1 {[%clk 0:02:48]}  Rfd8 {[%clk 0:02:27]} 16. Be3 {[%clk 0:02:45]}  Nc4 {[%clk 0:02:25]} 17. b3 {[%clk 0:02:40]}  Nxe3 {[%clk 0:02:25]} 18. fxe3 {[%clk 0:02:41]}  Rd7 {[%clk 0:02:17]} 19. Kf2 {[%clk 0:02:39]}  Rad8 {[%clk 0:02:17]} 20. Ke2 {[%clk 0:02:37]}  Kf8 {[%clk 0:02:02]} 21. e5 {[%clk 0:02:32]}  Nd5 {[%clk 0:02:01]} 22. Ne4 {[%clk 0:02:29]}  f6 {[%clk 0:01:46]} 23. exf6 {[%clk 0:02:30]}  gxf6 {[%clk 0:01:44]} 24. g4 {[%clk 0:02:27]}  f5 {[%clk 0:01:38]} 25. Nc5 {[%clk 0:02:09]}  Bxc5 {[%clk 0:01:35]} 26. Rxc5 {[%clk 0:02:10]}  fxg4 {[%clk 0:01:32]} 27. Bxg4 {[%clk 0:02:11]}  Ke7 {[%clk 0:01:32]} 28. Bf3 {[%clk 0:02:05]}  Kd6 {[%clk 0:01:28]} 29. e4 {[%clk 0:02:02]}  Nc7 {[%clk 0:01:25]} 30. Rh5 {[%clk 0:02:00]}  Rf8 {[%clk 0:01:24]} 31. e5+ {[%clk 0:01:59]}  Ke7 {[%clk 0:01:21]} 32. Rxh7+ {[%clk 0:02:00]}  Kd8 {[%clk 0:01:20]} 33. Rxd7+ {[%clk 0:02:00]}  Kxd7 {[%clk 0:01:20]} 34. Ke3 {[%clk 0:01:56]}  Rh8 {[%clk 0:01:19]} 35. Rh1 {[%clk 0:01:55]}  Nd5+ {[%clk 0:01:18]} 36. Bxd5 {[%clk 0:01:54]}  exd5 {[%clk 0:01:16]} 37. h4 {[%clk 0:01:54]}  Ke6 {[%clk 0:01:16]} 38. Kf4 {[%clk 0:01:47]}  Rf8+ {[%clk 0:01:11]} 39. Kg4 {[%clk 0:01:48]}  Rg8+ {[%clk 0:01:12]} 40. Kf4 {[%clk 0:01:48]}  Rf8+ {[%clk 0:01:12]} 41. Ke3 {[%clk 0:01:44]}  c5 {[%clk 0:01:07]} 42. dxc5 {[%clk 0:01:38]}  Kxe5 {[%clk 0:01:07]} 43. h5 {[%clk 0:01:39]}  d4+ {[%clk 0:01:04]} 44. Kd3 {[%clk 0:01:39]}  Rf3+ {[%clk 0:01:01]} 45. Ke2 {[%clk 0:01:40]}  Rf7 {[%clk 0:00:59]} 46. h6 {[%clk 0:01:40]}  Rh7 {[%clk 0:00:59]} 47. Kd3 {[%clk 0:01:39]}  b6 {[%clk 0:00:48]} 48. cxb6 {[%clk 0:01:36]}  axb6 {[%clk 0:00:48]} 49. Rh5+ {[%clk 0:01:36]}  Kd6 {[%clk 0:00:45]} 50. Kxd4 {[%clk 0:01:37]}  Kc6 {[%clk 0:00:45]} 51. Ke5 {[%clk 0:01:35]}  b5 {[%clk 0:00:39]} 52. Kf6 {[%clk 0:01:35]}  b4 {[%clk 0:00:36]} 53. Kg6 {[%clk 0:01:35]}  Rd7 {[%clk 0:00:35]} 54. h7 {[%clk 0:01:34]} 1-0


[Site "https://www.chess.com"]

[Event "Titled Tuesday Blitz June 28 Early 2022"]
[White "Begunov, Konstantin"]
[Black "De Silva, L M S T"]
[WhiteFideId "4118510"]
[BlackFideId "9953698"]
[WhiteElo "2262"]
[BlackElo "1631"]
[Result "0-1"]
[Round "02"]
[TimeControl "180+1"]
[Date "2022.06.28"]
[WhiteClock "0:00:02"]
[BlackClock "0:01:27"]

1. d4 {[%clk 0:03:00]}  Nf6 {[%clk 0:03:00]} 2. c4 {[%clk 0:03:00]}  e6 {[%clk 0:02:59]} 3. Nf3 {[%clk 0:02:59]}  d5 {[%clk 0:02:59]} 4. Nc3 {[%clk 0:02:59]}  Bb4 {[%clk 0:02:58]} 5. Qa4+ {[%clk 0:02:54]}  Nc6 {[%clk 0:02:58]} 6. Ne5 {[%clk 0:02:54]}  Bd7 {[%clk 0:02:56]} 7. Nxd7 {[%clk 0:02:26]}  Qxd7 {[%clk 0:02:56]} 8. a3 {[%clk 0:02:25]}  Bd6 {[%clk 0:02:43]} 9. cxd5 {[%clk 0:02:08]}  exd5 {[%clk 0:02:39]} 10. Bg5 {[%clk 0:02:03]}  Be7 {[%clk 0:02:33]} 11. e3 {[%clk 0:01:58]}  h6 {[%clk 0:02:30]} 12. Bf4 {[%clk 0:01:30]}  Nh5 {[%clk 0:02:28]} 13. Bg3 {[%clk 0:01:23]}  Nxg3 {[%clk 0:02:28]} 14. hxg3 {[%clk 0:01:23]}  a6 {[%clk 0:02:21]} 15. Bb5 {[%clk 0:01:19]}  O-O {[%clk 0:02:20]} 16. Bxc6 {[%clk 0:01:18]}  bxc6 {[%clk 0:02:21]} 17. Qc2 {[%clk 0:01:14]}  Rfb8 {[%clk 0:02:20]} 18. Na4 {[%clk 0:01:12]}  Rb5 {[%clk 0:02:07]} 19. O-O {[%clk 0:01:08]}  a5 {[%clk 0:02:05]} 20. Rac1 {[%clk 0:00:54]}  Ra6 {[%clk 0:02:04]} 21. Qd3 {[%clk 0:00:51]}  Bd6 {[%clk 0:02:01]} 22. Nc3 {[%clk 0:00:47]}  Rbb6 {[%clk 0:02:00]} 23. Rc2 {[%clk 0:00:41]}  a4 {[%clk 0:01:58]} 24. Rfc1 {[%clk 0:00:37]}  h5 {[%clk 0:01:53]} 25. e4 {[%clk 0:00:25]}  Qe6 {[%clk 0:01:46]} 26. exd5 {[%clk 0:00:19]}  cxd5 {[%clk 0:01:47]} 27. Qf3 {[%clk 0:00:19]}  c6 {[%clk 0:01:43]} 28. Ne2 {[%clk 0:00:18]}  g6 {[%clk 0:01:40]} 29. Nf4 {[%clk 0:00:18]}  Qf5 {[%clk 0:01:39]} 30. Nd3 {[%clk 0:00:16]}  Qg5 {[%clk 0:01:33]} 31. Nf4 {[%clk 0:00:09]}  h4 {[%clk 0:01:32]} 32. Re2 {[%clk 0:00:06]}  Rb3 {[%clk 0:01:29]} 33. Re3 {[%clk 0:00:02]}  hxg3 {[%clk 0:01:27]} 0-1


[Site "https://www.chess.com"]

[Event "Titled Tuesday Blitz June 28 Early 2022"]
[White "Bharath Subramaniyam H"]
[Black "Arias, Juan Cruz"]
[WhiteFideId "46634827"]
[BlackFideId "118540"]
[WhiteElo "2242"]
[BlackElo "2091"]
[Result "1-0"]
[Round "02"]
[TimeControl "180+1"]
[Date "2022.06.28"]
[WhiteClock "0:00:49"]
[BlackClock "0:00:33"]

1. d4 {[%clk 0:03:00]}  Nf6 {[%clk 0:02:58]} 2. Nf3 {[%clk 0:02:59]}  e6 {[%clk 0:02:57]} 3. Bf4 {[%clk 0:03:00]}  c5 {[%clk 0:02:56]} 4. c3 {[%clk 0:03:00]}  b6 {[%clk 0:02:54]} 5. Nbd2 {[%clk 0:02:57]}  Bb7 {[%clk 0:02:55]} 6. e3 {[%clk 0:02:58]}  cxd4 {[%clk 0:02:54]} 7. exd4 {[%clk 0:02:50]}  Be7 {[%clk 0:02:52]} 8. Bd3 {[%clk 0:02:50]}  O-O {[%clk 0:02:52]} 9. O-O {[%clk 0:02:48]}  d6 {[%clk 0:02:53]} 10. a4 {[%clk 0:02:47]}  a6 {[%clk 0:02:53]} 11. Re1 {[%clk 0:02:42]}  Nbd7 {[%clk 0:02:51]} 12. h3 {[%clk 0:02:42]}  Qc7 {[%clk 0:02:50]} 13. Nc4 {[%clk 0:02:37]}  Rfe8 {[%clk 0:02:48]} 14. Bh2 {[%clk 0:02:33]}  Bf8 {[%clk 0:02:42]} 15. Ne3 {[%clk 0:02:22]}  Bc6 {[%clk 0:02:40]} 16. c4 {[%clk 0:02:21]}  Qb7 {[%clk 0:02:35]} 17. Nd2 {[%clk 0:02:20]}  d5 {[%clk 0:02:30]} 18. Rc1 {[%clk 0:02:12]}  Bb4 {[%clk 0:02:25]} 19. Re2 {[%clk 0:02:03]}  Rad8 {[%clk 0:02:11]} 20. Qc2 {[%clk 0:01:56]}  Rc8 {[%clk 0:02:06]} 21. b3 {[%clk 0:01:45]}  e5 {[%clk 0:01:52]} 22. dxe5 {[%clk 0:01:40]}  Nxe5 {[%clk 0:01:51]} 23. Bxe5 {[%clk 0:01:35]}  Rxe5 {[%clk 0:01:50]} 24. cxd5 {[%clk 0:01:35]}  Bd7 {[%clk 0:01:36]} 25. Ndc4 {[%clk 0:01:32]}  b5 {[%clk 0:01:26]} 26. axb5 {[%clk 0:01:31]}  axb5 {[%clk 0:01:26]} 27. Nxe5 {[%clk 0:01:31]}  Rxc2 {[%clk 0:01:25]} 28. Rexc2 {[%clk 0:01:31]}  Bd6 {[%clk 0:00:46]} 29. Nxd7 {[%clk 0:01:24]}  Nxd7 {[%clk 0:00:42]} 30. Rc8+ {[%clk 0:01:22]}  Nf8 {[%clk 0:00:40]} 31. Nf5 {[%clk 0:01:13]}  Bf4 {[%clk 0:00:40]} 32. d6 {[%clk 0:00:52]}  g6 {[%clk 0:00:36]} 33. R1c7 {[%clk 0:00:49]}  Qd5 {[%clk 0:00:33]} 34. Rxf8+ {[%clk 0:00:49]} 1-0


[Site "https://www.chess.com"]

[Event "Titled Tuesday Blitz June 28 Early 2022"]
[White "Blokhin, Sofia"]
[Black "Rios Escobar, Adan"]
[WhiteFideId "4508190"]
[BlackFideId "3403645"]
[WhiteElo "1760"]
[BlackElo "2465"]
[Result "0-1"]
[Round "02"]
[TimeControl "180+1"]
[Date "2022.06.28"]
[WhiteClock "0:00:06"]
[BlackClock "0:00:13"]

1. d4 {[%clk 0:03:00]}  Nf6 {[%clk 0:02:58]} 2. c4 {[%clk 0:03:00]}  g6 {[%clk 0:02:57]} 3. Nc3 {[%clk 0:02:59]}  Bg7 {[%clk 0:02:57]} 4. e4 {[%clk 0:02:59]}  d6 {[%clk 0:02:57]} 5. f3 {[%clk 0:02:59]}  O-O {[%clk 0:02:56]} 6. Be3 {[%clk 0:03:00]}  a6 {[%clk 0:02:53]} 7. g4 {[%clk 0:02:59]}  Nc6 {[%clk 0:02:47]} 8. h4 {[%clk 0:02:57]}  e5 {[%clk 0:02:43]} 9. d5 {[%clk 0:02:55]}  Nd4 {[%clk 0:02:43]} 10. Qd2 {[%clk 0:02:49]}  Rb8 {[%clk 0:02:11]} 11. O-O-O {[%clk 0:02:35]}  c5 {[%clk 0:02:10]} 12. Bh6 {[%clk 0:02:24]}  b5 {[%clk 0:01:51]} 13. Bxg7 {[%clk 0:02:19]}  Kxg7 {[%clk 0:01:51]} 14. h5 {[%clk 0:02:18]}  Qa5 {[%clk 0:01:25]} 15. hxg6 {[%clk 0:02:05]}  fxg6 {[%clk 0:01:23]} 16. Qh6+ {[%clk 0:01:56]}  Kg8 {[%clk 0:01:22]} 17. Nh3 {[%clk 0:01:13]}  b4 {[%clk 0:01:21]} 18. Ng5 {[%clk 0:00:56]}  Rb7 {[%clk 0:00:40]} 19. Nb1 {[%clk 0:00:46]}  Qxa2 {[%clk 0:00:39]} 20. Rxd4 {[%clk 0:00:41]}  cxd4 {[%clk 0:00:35]} 21. Bd3 {[%clk 0:00:26]}  Rc7 {[%clk 0:00:33]} 22. f4 {[%clk 0:00:12]}  Nxg4 {[%clk 0:00:29]} 23. Qh4 {[%clk 0:00:09]}  Rxf4 {[%clk 0:00:13]} 24. Rg1 {[%clk 0:00:07]}  Rxc4+ {[%clk 0:00:13]} 25. Bxc4 {[%clk 0:00:06]}  Qxc4+ {[%clk 0:00:14]} 26. Kd1 {[%clk 0:00:07]}  Ne3+ {[%clk 0:00:13]} 27. Ke1 {[%clk 0:00:06]}  Rxh4 {[%clk 0:00:13]} 0-1


[Site "https://www.chess.com"]

[Event "Titled Tuesday Blitz June 28 Early 2022"]
[White "Boder, Jan"]
[Black "Deac, Bogdan-Daniel"]
[WhiteFideId "16243226"]
[BlackFideId "1226380"]
[WhiteElo "2064"]
[BlackElo "2648"]
[Result "0-1"]
[Round "02"]
[TimeControl "180+1"]
[Date "2022.06.28"]
[WhiteClock "0:01:20"]
[BlackClock "0:01:49"]

1. c4 {[%clk 0:02:59]}  Nf6 {[%clk 0:02:56]} 2. g3 {[%clk 0:02:59]}  e6 {[%clk 0:02:54]} 3. Bg2 {[%clk 0:02:59]}  d5 {[%clk 0:02:55]} 4. Nf3 {[%clk 0:03:00]}  Be7 {[%clk 0:02:56]} 5. O-O {[%clk 0:03:00]}  O-O {[%clk 0:02:56]} 6. b3 {[%clk 0:03:01]}  b6 {[%clk 0:02:56]} 7. cxd5 {[%clk 0:03:00]}  Nxd5 {[%clk 0:02:55]} 8. Bb2 {[%clk 0:03:00]}  Bb7 {[%clk 0:02:56]} 9. d4 {[%clk 0:02:59]}  Nd7 {[%clk 0:02:54]} 10. Nbd2 {[%clk 0:02:49]}  c5 {[%clk 0:02:53]} 11. dxc5 {[%clk 0:02:48]}  Nxc5 {[%clk 0:02:53]} 12. Rc1 {[%clk 0:02:39]}  Rc8 {[%clk 0:02:52]} 13. Nc4 {[%clk 0:02:39]}  b5 {[%clk 0:02:49]} 14. Nce5 {[%clk 0:02:37]}  Qb6 {[%clk 0:02:22]} 15. Rxc5 {[%clk 0:02:10]}  Qxc5 {[%clk 0:02:18]} 16. Nd7 {[%clk 0:02:11]}  Qc2 {[%clk 0:02:16]} 17. Qa1 {[%clk 0:01:36]}  Rfd8 {[%clk 0:02:09]} 18. Rb1 {[%clk 0:01:34]}  Rxd7 {[%clk 0:02:07]} 19. Bxg7 {[%clk 0:01:33]}  Nc3 {[%clk 0:01:56]} 20. Nd4 {[%clk 0:01:21]}  Qxb1+ {[%clk 0:01:49]} 21. Qxb1 {[%clk 0:01:20]}  Nxb1 {[%clk 0:01:49]} 0-1


[Site "https://www.chess.com"]

[Event "Titled Tuesday Blitz June 28 Early 2022"]
[White "Boraso, Alessio"]
[Black "Perez Gormaz, Matias"]
[WhiteFideId "848077"]
[BlackFideId "3406342"]
[WhiteElo "2286"]
[BlackElo "2341"]
[Result "0-1"]
[Round "02"]
[TimeControl "180+1"]
[Date "2022.06.28"]
[WhiteClock "0:00:03"]
[BlackClock "0:01:02"]

1. c4 {[%clk 0:03:00]}  a6 {[%clk 0:03:00]} 2. g3 {[%clk 0:03:00]}  b5 {[%clk 0:03:01]} 3. Bg2 {[%clk 0:03:00]}  c6 {[%clk 0:03:01]} 4. b3 {[%clk 0:02:58]}  h5 {[%clk 0:02:59]} 5. h4 {[%clk 0:02:57]}  Nf6 {[%clk 0:02:58]} 6. Bb2 {[%clk 0:02:57]}  Ng4 {[%clk 0:02:58]} 7. Nf3 {[%clk 0:02:52]}  bxc4 {[%clk 0:02:58]} 8. bxc4 {[%clk 0:02:52]}  d6 {[%clk 0:02:53]} 9. O-O {[%clk 0:02:41]}  e5 {[%clk 0:02:51]} 10. e4 {[%clk 0:02:24]}  Nd7 {[%clk 0:02:45]} 11. d4 {[%clk 0:02:23]}  Be7 {[%clk 0:02:43]} 12. Nc3 {[%clk 0:02:19]}  Rb8 {[%clk 0:02:42]} 13. Rb1 {[%clk 0:02:19]}  Qa5 {[%clk 0:02:40]} 14. Qd2 {[%clk 0:02:10]}  exd4 {[%clk 0:02:35]} 15. Nxd4 {[%clk 0:02:07]}  Nde5 {[%clk 0:02:35]} 16. Qe2 {[%clk 0:01:56]}  Bd7 {[%clk 0:02:30]} 17. Kh1 {[%clk 0:01:42]}  O-O {[%clk 0:02:27]} 18. f3 {[%clk 0:01:42]}  Nf6 {[%clk 0:02:26]} 19. Rfc1 {[%clk 0:01:28]}  Rfe8 {[%clk 0:02:15]} 20. c5 {[%clk 0:01:15]}  dxc5 {[%clk 0:02:01]} 21. Nc2 {[%clk 0:01:10]}  c4 {[%clk 0:01:55]} 22. Ne1 {[%clk 0:01:01]}  Be6 {[%clk 0:01:42]} 23. Nd1 {[%clk 0:01:01]}  Red8 {[%clk 0:01:28]} 24. Bc3 {[%clk 0:00:58]}  Qc7 {[%clk 0:01:24]} 25. Ne3 {[%clk 0:00:51]}  Nd3 {[%clk 0:01:24]} 26. Rxb8 {[%clk 0:00:50]}  Qxb8 {[%clk 0:01:21]} 27. Rd1 {[%clk 0:00:47]}  Qxg3 {[%clk 0:01:20]} 28. Nxd3 {[%clk 0:00:40]}  Qxh4+ {[%clk 0:01:18]} 29. Kg1 {[%clk 0:00:40]}  cxd3 {[%clk 0:01:16]} 30. Rxd3 {[%clk 0:00:41]}  Rb8 {[%clk 0:01:13]} 31. Rd1 {[%clk 0:00:39]}  Qg5 {[%clk 0:01:10]} 32. Nf1 {[%clk 0:00:29]}  h4 {[%clk 0:01:07]} 33. Bd2 {[%clk 0:00:26]}  Bc5+ {[%clk 0:01:05]} 34. Be3 {[%clk 0:00:25]}  h3 {[%clk 0:01:04]} 35. Bxc5 {[%clk 0:00:05]}  Qxc5+ {[%clk 0:01:02]} 36. Qe3 {[%clk 0:00:02]}  Qxe3+ {[%clk 0:01:02]} 37. Nxe3 {[%clk 0:00:03]}  hxg2 {[%clk 0:01:03]} 38. f4 {[%clk 0:00:04]}  Nxe4 {[%clk 0:01:02]} 39. f5 {[%clk 0:00:03]}  Bxa2 {[%clk 0:01:02]} 0-1


[Site "https://www.chess.com"]

[Event "Titled Tuesday Blitz June 28 Early 2022"]
[White "Buscar, Michael"]
[Black "Tari, Aryan"]
[WhiteFideId "2603616"]
[BlackFideId "1510045"]
[WhiteElo "2010"]
[BlackElo "2567"]
[Result "0-1"]
[Round "02"]
[TimeControl "180+1"]
[Date "2022.06.28"]
[WhiteClock "0:00:01"]
[BlackClock "0:01:36"]

1. Nf3 {[%clk 0:02:56]}  b6 {[%clk 0:02:49]} 2. e3 {[%clk 0:02:53]}  Bb7 {[%clk 0:02:48]} 3. c4 {[%clk 0:02:53]}  Nf6 {[%clk 0:02:41]} 4. b3 {[%clk 0:02:52]}  g6 {[%clk 0:02:41]} 5. Bb2 {[%clk 0:02:52]}  Bg7 {[%clk 0:02:41]} 6. Be2 {[%clk 0:02:51]}  O-O {[%clk 0:02:42]} 7. O-O {[%clk 0:02:50]}  c5 {[%clk 0:02:43]} 8. d3 {[%clk 0:02:48]}  d6 {[%clk 0:02:42]} 9. Nbd2 {[%clk 0:02:48]}  Nbd7 {[%clk 0:02:43]} 10. Qc2 {[%clk 0:02:43]}  a6 {[%clk 0:02:44]} 11. Rfe1 {[%clk 0:02:41]}  b5 {[%clk 0:02:44]} 12. a4 {[%clk 0:02:37]}  b4 {[%clk 0:02:41]} 13. d4 {[%clk 0:02:22]}  e6 {[%clk 0:02:36]} 14. e4 {[%clk 0:02:18]}  cxd4 {[%clk 0:02:33]} 15. Bxd4 {[%clk 0:02:03]}  e5 {[%clk 0:02:33]} 16. Bb2 {[%clk 0:01:48]}  Nc5 {[%clk 0:02:34]} 17. Bf1 {[%clk 0:01:48]}  Ne6 {[%clk 0:02:30]} 18. Rad1 {[%clk 0:01:44]}  Nd7 {[%clk 0:02:30]} 19. g3 {[%clk 0:01:36]}  Ndc5 {[%clk 0:02:30]} 20. Bg2 {[%clk 0:01:36]}  Qe7 {[%clk 0:02:29]} 21. Re2 {[%clk 0:01:19]}  Bc6 {[%clk 0:02:21]} 22. Ne1 {[%clk 0:01:17]}  Qb7 {[%clk 0:02:20]} 23. Nd3 {[%clk 0:00:55]}  Rad8 {[%clk 0:02:12]} 24. Nxc5 {[%clk 0:00:52]}  Nxc5 {[%clk 0:02:13]} 25. Nf1 {[%clk 0:00:45]}  f5 {[%clk 0:02:13]} 26. f3 {[%clk 0:00:37]}  fxe4 {[%clk 0:02:12]} 27. fxe4 {[%clk 0:00:37]}  Bh6 {[%clk 0:02:05]} 28. Rd5 {[%clk 0:00:22]}  Bxd5 {[%clk 0:02:02]} 29. exd5 {[%clk 0:00:17]}  Rf7 {[%clk 0:01:57]} 30. Ne3 {[%clk 0:00:13]}  Qd7 {[%clk 0:01:57]} 31. h3 {[%clk 0:00:12]}  Rdf8 {[%clk 0:01:54]} 32. Ng4 {[%clk 0:00:12]}  Bg7 {[%clk 0:01:54]} 33. Kh2 {[%clk 0:00:12]}  Qf5 {[%clk 0:01:52]} 34. Qd2 {[%clk 0:00:09]}  a5 {[%clk 0:01:47]} 35. Qe3 {[%clk 0:00:09]}  Qd3 {[%clk 0:01:43]} 36. Bc1 {[%clk 0:00:07]}  Qxe3 {[%clk 0:01:41]} 37. Bxe3 {[%clk 0:00:06]}  Nxb3 {[%clk 0:01:40]} 38. Bb6 {[%clk 0:00:06]}  h5 {[%clk 0:01:38]} 39. Ne3 {[%clk 0:00:06]}  Rf2 {[%clk 0:01:38]} 40. Re1 {[%clk 0:00:02]}  Ra2 {[%clk 0:01:36]} 41. c5 {[%clk 0:00:01]}  Nxc5 {[%clk 0:01:36]} 0-1


[Site "https://www.chess.com"]